Cogmind - Beta 14 @@@ ROGUE MODE // 2024.10.06 @ 10:44:35 Player: LU-1G1 Result: Destroyed by H-66 Slayer with Gauss Rifle Performance ------------- Evolutions (4) 2000 Regions Visited (11) 2200 Robots Destroyed (232) 1160 Value Destroyed (7506) 7506 Prototype IDs (45) 900 Alien Tech Used (0) 0 Bonus (-555) -555 TOTAL SCORE: 13211 Bonus ------- High Alert Combat Kills 96 Follower Combat Kills 1053 Aligned with FarCom 300 Friendly Fire -2004 Cogmind --------- Core Integrity 0/850 Matter 40/300 Energy 12/100 System Corruption 14% Temperature Cool (1) Movement Flying (30) Location -6/Factory Parts ------- > --- POWER (2) -------- (None) > --- PROPULSION (4) --- Diametric Drive > --- UTILITY (6) ------ (None) > --- WEAPON (3) ------- Vibroblade > --- INVENTORY (5) ---- AWS/Autocannon Peak State ------------ > --- POWER ------------ Neutrino Core > --- PROPULSION ------- Overtuned Huge Scrapsphere Overtuned Huge Scrapsphere > --- UTILITY ---------- Scrap Suit Huge Storage Unit Rocket Booster Makeshift Medium Armor Plating Tech Extrapolator > --- WEAPON ----------- AWS/Autocannon > --- INVENTORY -------- Neutrino Core Light Treads Scrap Suit Scrap Suit Energy Well Improved Sensor Array Improved Melee Analysis Suite Transmission Jammer Improved Light Armor Plating Makeshift Medium Armor Plating Improved Heavy Laser Improved Heavy Laser Improved Heavy Laser Flak Gun Mini Grenade Launcher Plasma Cutter CPS Tube Voltaic Drivehammer Makeshift Spear Deploy-a-Sentry [Rating: 93] Favorites ----------- Power Hybrid Fission Core Engine Deuterium Engine Power Core Hybrid Fission Core Propulsion Tri-treads Treads Tri-treads Wheel Overtuned Huge Scrapsphere Hover Unit Combat Airjet Flight Unit Diametric Drive Utility Shield Generator Device Shield Generator Storage Huge Storage Unit Processor Tech Extrapolator Hackware Hacking Suite Protection Makeshift Medium Armor Plating Weapon Heavy Assault Rifle Energy Gun Small Laser Energy Cannon EM Pulse Cannon Ballistic Gun Heavy Assault Rifle Ballistic Cannon Siege Cannon Launcher Mini Grenade Launcher Special Weapon Plasma Cutter Impact Weapon Powered Hammer Slashing Weapon Vibroblade Piercing Weapon Makeshift Spear Build | -11 -10 -10 -9 -9 -9 -8 -8 -8 -8 -8 -6 ------- Run | Yrd Mat Min Mat Min Exi Min Mat Sto Rec Scr Fac Slots Evolved 8 | . . . 2 . . . 2 . . . 4 Power 1 | . . . . . . . . . . . 1 Propulsion 2 | . . . 1 . . . . . . . 1 Utility 4 | . . . 1 . . . 1 . . . 2 Weapon 1 | . . . . . . . 1 . . . . Parts Attached 259 | 7 7 1 25 4 3 . 39 35 5 86 47 Power 16 | 1 . 1 5 . . . 1 3 . 3 2 Engine 12 | 1 . 1 5 . . . 1 3 . . 1 Core 4 | . . . . . . . . . . 3 1 Reactor . | . . . . . . . . . . . . Propulsion 53 | 3 . . 12 . . . 18 3 2 3 12 Treads 37 | 2 . . 11 . . . 17 3 2 2 . Leg . | . . . . . . . . . . . . Wheel 6 | 1 . . . . . . . . . 1 4 Hover 5 | . . . . . . . . . . . 5 Flight 5 | . . . 1 . . . 1 . . . 3 Utility 88 | 1 3 . 3 2 . . 7 8 2 50 12 Device 57 | . 2 . 1 1 . . 2 3 . 39 9 Storage 4 | 1 1 . . . . . . . . 2 . Processor 8 | . . . 1 . . . . 1 . 4 2 Hackware 3 | . . . . . . . 1 2 . . . Protection 16 | . . . 1 1 . . 4 2 2 5 1 Artifact . | . . . . . . . . . . . . Weapon 102 | 2 4 . 5 2 3 . 13 21 1 30 21 Energy Gun 7 | 1 . . 2 . . . 1 . . . 3 Energy Cannon 8 | . 2 . . . . . . 2 . 4 . Ballistic Gun 40 | 1 2 . 3 2 2 . 7 14 1 1 7 Ballistic Cannon 16 | . . . . . . . 1 . . 13 2 Launcher 4 | . . . . . . . 1 1 . . 2 Special Weapon 9 | . . . . . . . . . . 7 2 Impact Weapon 11 | . . . . . 1 . 3 4 . 3 . Slashing Weapon 2 | . . . . . . . . . . . 2 Piercing Weapon 5 | . . . . . . . . . . 2 3 Special Melee Weapon . | . . . . . . . . . . . . Unidentified Prototypes 13 | . . . 5 . . . 2 1 . 1 4 Parts Lost 18 | . . . 2 3 . . . 1 . 2 10 Power 4 | . . . 2 . . . . . . . 2 Propulsion 2 | . . . . . . . . . . . 2 Utility 7 | . . . . 1 . . . 1 . 2 3 Weapon 5 | . . . . 2 . . . . . . 3 Highest Loss Streak 4 | . . . 1 2 . . . 1 . 1 4 To Critical Strikes . | . . . . . . . . . . . . Average Slot Usage (%) 73 | . 99 100 92 99 77 100 97 100 100 64 68 Engine 3 | . 14 14 10 11 11 11 9 9 9 1 . Core 5 | . . . . . . . . . . 7 5 Treads 15 | . 28 28 32 33 33 33 27 27 27 10 . Device 9 | . 13 14 3 . . . . 8 9 10 14 Storage 9 | . 14 14 11 11 11 11 9 9 9 9 5 Processor 5 | . . . 8 11 11 11 9 2 . 6 9 Protection 7 | . . . 3 10 11 11 15 10 12 6 4 Energy Cannon 1 | . 11 14 1 . . . . . . 1 1 Ballistic Gun 7 | . 13 14 19 21 . 22 24 23 25 2 9 Ballistic Cannon 2 | . . . . . . . . . . 3 . Impact Weapon 2 | . . . . . . . 1 3 1 2 . Peak Build Rating 93 | 6 11 11 20 21 20 20 49 37 35 72 93 Average Rating 47 | 5 9 11 16 18 13 20 25 33 33 55 72 On Entrance 22 | . 6 11 11 20 14 20 20 49 35 33 56 Naked Turns 3 | . . . . . . . . . . . 3 Heaviest Build 294 | 12 93 93 99 95 95 95 158 111 111 294 171 Greatest Support 66 | 40 40 40 60 60 60 60 60 66 66 64 48 Greatest Overweight (x) 70 | . 2 2 2 1 1 1 2 1 1 70 14 Average Overweight (x) 2 | . . 2 1 1 1 1 1 1 1 3 2 Largest Inventory Capacity 35 | 8 25 25 25 25 25 25 25 25 25 35 25 Average Capacity 27 | 7 16 25 25 25 25 25 25 25 25 28 23 Most Carried 35 | 6 17 19 25 25 25 24 25 25 25 35 25 Average Carried 25 | 3 10 18 22 24 22 24 24 24 24 27 23 Final Capacity 25 | 8 25 25 25 25 25 25 25 25 25 25 5 Final Carried 25 | 6 17 19 25 25 24 24 25 25 25 25 3 Class Distribution -------------------- 23% | Hauler-Mutant 17% | Scavenger-Mutant 15% | Commander-Tank 15% | Tank 15% | Scavenger-Tank 6% | Mutant Dominant Class ---------------- Mutant | -10/Materials Mutant | -10/Mines Scavenger-Mutant | -9/Materials Scavenger-Mutant | -9/Mines Scavenger-Mutant | -9/Exiles Scavenger-Mutant | -8/Mines Scavenger-Tank | -8/Materials Tank | -8/Storage Commander-Tank | -8/Recycling Hauler-Mutant | -8/Scraptown Scavenger-Skirmisher | -6/Factory Resources | -11 -10 -10 -9 -9 -9 -8 -8 -8 -8 -8 -6 ----------- Run | Yrd Mat Min Mat Min Exi Min Mat Sto Rec Scr Fac Matter Collected 12537 | 273 136 76 674 179 12 . 750 1033 283 8488 633 Remotely 4082 | . . . . . . . . . . 4082 . Salvage Created 10823 | 86 544 225 1193 325 . . 1136 1027 408 4609 1270 Parts 535 | 3 26 16 80 22 . . 75 44 15 198 56 Haulers Intercepted 17 | . 2 . 5 . . . 4 4 . . 2 Recyclers Shooed 11 | . 5 . 2 . . . 1 . 2 . 1 Parts Field Recycled . | . . . . . . . . . . . . Retrieved Matter . | . . . . . . . . . . . . Parts Self-Destructed . | . . . . . . . . . . . . Prevented 11 | . . . . . . . . . . 11 . Kills | -11 -10 -10 -9 -9 -9 -8 -8 -8 -8 -8 -6 ------- Run | Yrd Mat Min Mat Min Exi Min Mat Sto Rec Scr Fac Combat Hostiles Destroyed 190 | . 5 10 15 7 . . 16 17 2 98 20 Melee 1 | . . . . . . . . . . . 1 Guns 68 | . 3 5 15 7 . . 13 16 2 . 7 Cannons 114 | . 2 5 . . . . 1 1 . 97 8 AOE 6 | . . . . . . . 2 . . . 4 Classes Destroyed 28 | 1 4 . 5 1 . . 2 2 . 12 1 Worker 8 | . . . 2 . . . 2 1 . . 3 Builder 5 | . . . 1 . . . 3 1 . . . Tunneler 2 | . . . 1 1 . . . . . . . Hauler 17 | . 2 . 5 . . . 4 4 . . 2 Recycler 16 | 1 4 . 3 . . . 3 . 4 . 1 Operator 1 | . . . . . . . . 1 . . . Turret 1 | . . . . . . . . . . 1 . Watcher 9 | . 3 . 2 . . . . 2 . . 2 Swarmer 18 | . 2 6 . . . . 3 3 . . 4 Grunt 46 | . 3 4 11 6 . . 6 8 . 1 7 Brawler 2 | . . . 1 . . . . . . . 1 Duelist 6 | . . . . 1 . . 1 2 . . 2 Protector 1 | . . . . . . . . 1 . . . Sentry 15 | . . . 3 . . . 4 3 2 1 2 Hunter 2 | . . . . . . . 1 . . . 1 Programmer 3 | . . . . . . . . . . . 3 Heavy 1 | . . . . . . . 1 . . . . Bolteater 5 | . . . . . . . . . . 5 . Federalist 4 | . . . . . . . . . . 4 . Explorer 10 | . . . . . . . . . . 10 . Ranger 6 | . . . . . . . . . . 6 . Guru 8 | . . . . . . . . . . 8 . Scientist 12 | . . . . . . . . . . 12 . Scrapper 42 | . . . . . . . . . . 42 . Elite 23 | . . . . . . . . . . 23 . Scrapoid 5 | . . . . . . . . . . 5 . Zionite 1 | . . . . . . . . . . 1 . Tinkerer 4 | . . . . . . . . . . 4 . Best Kill Streak 15 | 1 2 5 4 3 . . 6 9 3 15 10 Combat Bots Only 15 | . 2 5 4 3 . . 4 8 1 15 5 Max Kills in Single Turn 3 | 1 1 1 2 1 . . 2 2 1 2 3 Gunslinging 1 | . . . . . . . . 1 . . . Exploded 3 | . . . . . . . 2 . . . 3 Melee 1 | . . . . . . . . . . . 1 Uniques/NPCs Destroyed 1 | . . . . . . . . . . 1 . Triborg (-8/Scraptown) Combat | -11 -10 -10 -9 -9 -9 -8 -8 -8 -8 -8 -6 -------- Run | Yrd Mat Min Mat Min Exi Min Mat Sto Rec Scr Fac Hostile Shots Fired 896 | . 21 41 67 37 . . 80 70 2 215 363 Missed 261 | . 11 11 15 10 . . 22 17 1 59 115 Damage Taken 8539 | . 95 314 671 393 . . 1033 636 9 1878 3510 Core 1531 | . 33 91 132 94 . . 152 48 . 124 857 Absorbed by Shields 1214 | . . . . . . . 67 173 3 630 341 Reduced by Siege Mode 478 | . . . . . . . . . . 478 . Redirected to Shielding 14 | . . . . 8 . . 6 . . . . Ignored by Resistances 326 | . . . . . . . . . . 326 . Core Remaining (%) 58 | 100 . 50 . . . 43 . . . 41 . Volleys Fired 587 | 3 29 19 75 24 . . 55 62 9 267 44 Largest 3 | 2 2 2 2 2 . . 3 3 3 1 3 Hottest 195 | 60 91 91 68 46 . . 69 126 69 70 195 Shots Fired 1118 | 6 53 38 145 48 . . 170 172 27 317 142 Gun 708 | 6 34 19 140 48 . . 161 161 27 . 112 Cannon 400 | . 19 19 5 . . . 8 10 . 312 27 Launcher 5 | . . . . . . . 1 1 . . 3 Special 5 | . . . . . . . . . . 5 . Kinetic 1017 | 3 25 19 140 48 . . 169 161 27 300 125 Thermal 69 | 3 28 19 5 . . . . . . . 14 Explosive 5 | . . . . . . . 1 1 . . 3 Electromagnetic 22 | . . . . . . . . 10 . 12 . Robot Hit Streak 33 | 3 8 6 32 8 . . 25 14 9 33 12 Robot Miss Streak 5 | 3 3 2 2 2 . . 4 5 1 3 4 Penetration Max 2 | . . . . . . . . . . 2 . Secondary Targets 7 | . . . 1 . . . 1 4 . . 1 Max Gunslinging Chain 1 | . . . 1 . . . 1 1 . . 1 Autonomous 83 | . . . . . . . 8 . . 48 27 Shots Hit Robots 810 | 3 35 25 113 33 . . 108 119 18 260 96 Core Hits 345 | 2 18 15 44 13 . . 45 49 9 94 56 Critical Kills 5 | . 2 . . . . . 1 2 . . . Critical Parts Destroyed 3 | . . . . 1 . . 1 . 1 . . Critical Strikes 43 | . 2 . . 1 . . 2 2 1 32 3 Meltdown 2 | . 2 . . . . . . . . . . Destroy 6 | . . . . 1 . . 2 2 1 . . Blast 32 | . . . . . . . . . . 31 1 Impale 3 | . . . . . . . . . . 1 2 Melee Attacks 82 | . . . . . . . 11 11 . 37 23 Impact 41 | . . . . . . . 11 11 . 19 . Slashing . | . . . . . . . . . . . . Piercing 41 | . . . . . . . . . . 18 23 Sneak Attacks 19 | . . . . . . . . . . 18 1 Combat Hostiles 1 | . . . . . . . . . . . 1 Follow-up Attacks . | . . . . . . . . . . . . Damage Inflicted 37519 | 30 570 475 1845 559 . 9 2279 1937 422 25256 4137 Guns 7855 | 30 236 208 1753 529 . . 1542 1720 318 . 1519 Cannons 27097 | . 315 262 40 . . . 482 191 . 24180 1627 Explosions 798 | . . . . . . . 207 . . . 591 Melee 1453 | . . . . . . . . . . 1076 377 Ramming 316 | . 19 5 52 30 . 9 48 26 104 . 23 Kinetic 33604 | 18 168 208 1753 529 . . 2024 1720 318 24025 2841 Thermal 1002 | 12 383 262 40 . . . . . . . 305 Explosive 563 | . . . . . . . 207 . . . 356 Electromagnetic 581 | . . . . . . . . 191 . 155 235 Impact 68 | . . . . . . . . . . 68 . Slashing . | . . . . . . . . . . . . Piercing 1385 | . . . . . . . . . . 1008 377 Highest Corruption 14 | . . . 2 2 2 2 . . . 2 14 Average Corruption 2 | . . . 2 2 2 2 . . . 1 9 Corruption Purged . | . . . . . . . . . . . . Corruption Blocked . | . . . . . . . . . . . . Effects 85 | . . . 19 6 12 . . . . 16 32 Message Errors 23 | . . . 4 3 4 . . . . 4 8 Matter Fused 18 | . . . . 2 . . . . . 7 9 Heat Flow Errors 5 | . . . 1 . 2 . . . . . 2 Energy Discharges 11 | . . . 5 1 2 . . . . 1 2 Parts Rejected 3 | . . . . . . . . . . . 3 Parts Fused 1 | . . . 1 . . . . . . . . Data Loss (minor) 16 | . . . 6 . 4 . . . . 2 4 Data Loss (major) 3 | . . . 2 . . . . . . . 1 Misfires 2 | . . . . . . . . . . 2 . Alerts 1 | . . . . . . . . . . . 1 Misdirections 1 | . . . . . . . . . . . 1 Weapon Failures 1 | . . . . . . . . . . . 1 Overload Shots . | . . . . . . . . . . . . Overflow Damage 3144 | . . . . 6 . . 2 . . 2894 242 Projectiles 3045 | . . . . . . . . . . 2836 209 Explosions 2 | . . . . . . . 2 . . . . Melee 97 | . . . . 6 . . . . . 58 33 Knockbacks 61 | . . . . . . . 1 . 1 55 4 Impact 3 | . . . . . . . 1 . 1 1 . Kinetic 53 | . . . . . . . . . . 49 4 Secondary 5 | . . . . . . . . . . 5 . Self-Inflicted Damage 103 | . . . . . . . 35 . . . 68 Shots 3 | . . . . . . . 1 . . . 2 Rammed 32 | . 2 1 8 2 . 2 5 2 7 . 3 Targets Rammed 35 | . 2 1 9 2 . 2 7 2 7 . 3 Kicked . | . . . . . . . . . . . . Crushed 3 | . . . 1 . . . 2 . . . . Highest Temperature 467 | 20 56 75 106 9 260 . 91 272 18 180 467 Average Temperature 50 | 15 14 36 17 4 123 . 27 72 4 34 142 Received Heat Transfer 2368 | . 36 102 324 183 . . 237 296 . 431 759 Effects 5 | . . . . . . . . 2 . . 3 Shutdowns 1 | . . . . . . . . . . . 1 Interference 4 | . . . . . . . . 2 . . 2 Siege Activations 7 | . . . . . . . . . . 7 . Total Turns 6563 | . . . . . . . . . . 6563 . Longest Duration 3499 | . . . . . . . . . . 3499 . Robots Corrupted 3 | . 1 . . . . . . . . 2 . Combat Hostiles 1 | . . . . . . . . . . 1 . Parts Fried 4 | . . . . . . . . 2 . 1 1 Impact Corruptions 8 | . 1 . . 1 . . . . . 6 . Robots Melted 2 | . 2 . . . . . . . . . . Combat Hostiles . | . . . . . . . . . . . . Parts Melted 15 | . 6 1 . . . . . . . 6 2 Heat Transferred 1692 | 25 705 444 74 . . . . . . . 444 Parts Sabotaged 2 | . . . . . . . . . . . 2 Parts Stolen . | . . . . . . . . . . . . Parts Stripped . | . . . . . . . . . . . . Power Chain Reactions 1 | . . . . . . . . . . . 1 Alert | -11 -10 -10 -9 -9 -9 -8 -8 -8 -8 -8 -6 ------- Run | Yrd Mat Min Mat Min Exi Min Mat Sto Rec Scr Fac Peak Influence 508 | 5 146 245 335 262 . . 355 267 69 . 508 Initial 149 | . 3 5 17 102 . . . 149 . . . Average 89 | . 48 148 162 152 . . 127 84 14 . 173 Maximum Alert Level 2 | . . 1 1 1 . . 1 1 . . 2 Low Security (%) 83 | 100 100 55 54 68 . 100 82 88 100 . 63 Level 1 15 | . . 44 45 31 . . 17 11 . . 19 Level 2 1 | . . . . . . . . . . . 16 Level 3 . | . . . . . . . . . . . . Level 4 . | . . . . . . . . . . . . Level 5 . | . . . . . . . . . . . . High Security . | . . . . . . . . . . . . Max Security . | . . . . . . . . . . . . Squads Dispatched 19 | . 1 . 2 . . . 3 2 . . 11 Investigation 2 | . . . . . . . . . . . 2 Extermination 2 | . . . . . . . . . . . 2 Reinforcement 9 | . 1 . 2 . . . 2 . . . 4 Assault 3 | . . . . . . . 1 2 . . . Garrison 3 | . . . . . . . . . . . 3 Intercept . | . . . . . . . . . . . . Searches Triggered . | . . . . . . . . . . . . Construction Impeded 1 | . . . . . . . . . . . 1 Haulers Reinforced 1 | . . . . . . . . . . . 1 Active Scanning Responses . | . . . . . . . . . . . . Cargo Convoy Interrupts 1 | . . . . . . . . . . . 1 Stealth | -11 -10 -10 -9 -9 -9 -8 -8 -8 -8 -8 -6 --------- Run | Yrd Mat Min Mat Min Exi Min Mat Sto Rec Scr Fac Distress Signals 15 | . 1 . 8 1 . . 3 2 . . . Communications Jammed . | . . . . . . . . . . . . Distress Signals . | . . . . . . . . . . . . Times Spotted 266 | . 12 10 39 7 . . 30 29 2 96 41 Peak Tracking Total 12 | . 3 5 6 3 . . 6 12 1 6 12 Tactical Retreats 14 | . 1 . 5 . . . . . . 6 2 Traps | -11 -10 -10 -9 -9 -9 -8 -8 -8 -8 -8 -6 ------- Run | Yrd Mat Min Mat Min Exi Min Mat Sto Rec Scr Fac Traps Triggered 9 | . . . . . . . . . . . 9 Indirectly . | . . . . . . . . . . . . Trap Hack Attempts . | . . . . . . . . . . . . Triggered . | . . . . . . . . . . . . Disarmed . | . . . . . . . . . . . . Reprogrammed . | . . . . . . . . . . . . Reused . | . . . . . . . . . . . . Traps Extracted . | . . . . . . . . . . . . Installed 1 | . . . . . . . . . . 1 . Triggered . | . . . . . . . . . . . . Most Traps Carried 1 | . . . . . . . . . . 1 . Machines | -11 -10 -10 -9 -9 -9 -8 -8 -8 -8 -8 -6 ---------- Run | Yrd Mat Min Mat Min Exi Min Mat Sto Rec Scr Fac Machines Disabled 33 | . . . . . . . 2 2 . 21 8 Max in Single Turn 4 | . . . . . . . 1 1 . 1 4 Garrison Access 2 | . . . . . . . 1 1 . . . Machines Repaired . | . . . . . . . . . . . . Machines Dismantled 1 | . . . . . . . . . . 1 . Machines Sabotaged . | . . . . . . . . . . . . Overloaded Fab Kills . | . . . . . . . . . . . . Hacking | -11 -10 -10 -9 -9 -9 -8 -8 -8 -8 -8 -6 --------- Run | Yrd Mat Min Mat Min Exi Min Mat Sto Rec Scr Fac Machines Accessed 45 | . 6 . 2 . 2 . 6 7 11 5 6 Terminals 28 | . 5 . 1 . . . 5 6 6 . 5 Fabricators 1 | . . . . . . . . . . . 1 Repair Stations 1 | . 1 . . . . . . . . . . Recycling Units 6 | . . . 1 . . . . . 5 . . Scanalyzers . | . . . . . . . . . . . . Garrison Access 2 | . . . . . . . 1 1 . . . Total Hacks 132 | . 17 . 3 . 2 . 18 31 24 22 15 Successful 80 | . 6 . 2 . 2 . 11 17 15 22 5 Failed 51 | . 11 . 1 . . . 7 14 8 . 10 Catastrophic 11 | . 3 . . . . . 3 1 . . 4 Database Lockouts 1 | . . . . . . . . . 1 . . Manual 65 | . 13 . . . 1 . 12 21 18 . . Terminals 89 | . 15 . 2 . . . 17 28 17 . 10 Fabricators 5 | . . . . . . . . . . . 5 Repair Stations 2 | . 2 . . . . . . . . . . Recycling Units 8 | . . . 1 . . . . . 7 . . Scanalyzers . | . . . . . . . . . . . . Garrison Access 4 | . . . . . . . 1 3 . . . Terminal Hacks 53 | . 5 . 1 . 2 . 6 8 5 22 4 Record 16 | . . . . . 1 . . . . 15 . Part Schematic 2 | . 1 . . . . . . . . . 1 Robot Schematic 1 | . . . . . . . . 1 . . . Robot Analysis 10 | . 2 . . . . . . 1 1 6 . Prototype ID Bank 2 | . . . . . . . 1 . 1 . . Open DSF 1 | . . . . . . . . . . . 1 Branch Access Points 2 | . . . . . . . 1 . . . 1 Terminal Index 2 | . 1 . . . . . 1 . . . . Alert Level 3 | . . . . . . . 1 1 1 . . Unreport Threat 2 | . . . . . . . . 2 . . . Hauler Manifests 1 | . . . 1 . . . . . . . . Zone Layout 9 | . 1 . . . . . 2 3 2 . 1 Derelict Proto ID Bank 2 | . . . . . 1 . . . . 1 . Fabricator Hacks 1 | . . . . . . . . . . . 1 Load Schematic 1 | . . . . . . . . . . . 1 Repair Station Hacks 1 | . 1 . . . . . . . . . . Scan Component 1 | . 1 . . . . . . . . . . Recycling Unit Hacks 1 | . . . 1 . . . . . . . . Retrieve Components 1 | . . . 1 . . . . . . . . Scanalyzer . | . . . . . . . . . . . . Garrison Access Hacks 1 | . . . . . . . . 1 . . . Seal Access 1 | . . . . . . . . 1 . . . Unauthorized Hacks 23 | . . . . . . . 5 8 10 . . Terminals 18 | . . . . . . . 5 8 5 . . Track 1 | . . . . . . . . 1 . . . Operators 2 | . . . . . . . . 2 . . . Skim 15 | . . . . . . . 5 5 5 . . Fabricators . | . . . . . . . . . . . . Repair Stations . | . . . . . . . . . . . . Recycling Units 5 | . . . . . . . . . 5 . . Tunnel 5 | . . . . . . . . . 5 . . Scanalyzers . | . . . . . . . . . . . . Garrison Access . | . . . . . . . . . . . . Data Cores Recovered 1 | . . . . . . . . 1 . . . Used 1 | . . . . . . . . 1 . . . Hacking Detections 33 | . 6 . 2 . . . 6 6 7 . 6 Full Trace Events 3 | . 1 . . . . . . . . . 2 Feedback Events 1 | . . . . . . . . . . . 1 Corruption 1 | . . . . . . . . . . . 1 Feedback Blocked . | . . . . . . . . . . . . Robot Schematics Acquired 1 | . . . . . . . . 1 . . . Robots Built . | . . . . . . . . . . . . Authchips . | . . . . . . . . . . . . Time . | . . . . . . . . . . . . Total Robot Build Rating . | . . . . . . . . . . . . Part Schematics Acquired 11 | . 1 . . . . . . . . 4 6 Parts Built . | . . . . . . . . . . . . Authchips . | . . . . . . . . . . . . Time . | . . . . . . . . . . . . Total Part Build Rating . | . . . . . . . . . . . . Parts Repaired . | . . . . . . . . . . . . Time . | . . . . . . . . . . . . Parts Recycled . | . . . . . . . . . . . . Recycled Matter . | . . . . . . . . . . . . Retrieved Matter . | . . . . . . . . . . . . Retrieved Components . | . . . . . . . . . . . . Parts Scanalyzed . | . . . . . . . . . . . . Part Schematics Acquired . | . . . . . . . . . . . . Parts Damaged . | . . . . . . . . . . . . Bothacking | -11 -10 -10 -9 -9 -9 -8 -8 -8 -8 -8 -6 ------------ Run | Yrd Mat Min Mat Min Exi Min Mat Sto Rec Scr Fac Used RIF Installer . | . . . . . . . . . . . . Robots Hacked . | . . . . . . . . . . . . Non-combat . | . . . . . . . . . . . . Combat . | . . . . . . . . . . . . Robot Hacks Applied . | . . . . . . . . . . . . Relay Couplers Released . | . . . . . . . . . . . . Fabnet Peak Effective % . | . . . . . . . . . . . . Robots Rewired 10 | . . . . . . . . . 10 . . Allies Hacked . | . . . . . . . . . . . . Hacks Repelled . | . . . . . . . . . . . . Allies | -11 -10 -10 -9 -9 -9 -8 -8 -8 -8 -8 -6 -------- Run | Yrd Mat Min Mat Min Exi Min Mat Sto Rec Scr Fac Total Allies 28 | . . 1 . . . . . 12 10 5 . Largest Group 19 | . . 1 1 . . . . 10 19 17 . Highest-Rated Group 292 | . . 31 31 . . . . 173 292 276 . Highest-Rated Ally 47 | . . 31 31 . . . . 31 29 47 . Total Orders 42 | . . . . . . . . 6 11 25 . STAY 32 | . . . . . . . . 4 6 22 . FOLLOW 7 | . . . . . . . . 2 3 2 . GUARD 1 | . . . . . . . . . . 1 . PICKUP 2 | . . . . . . . . . 2 . . Ally Attacks 294 | . . . 2 . . . . 20 5 266 1 Total Damage 3469 | . . . 22 . . . . 338 94 2951 64 Kills 37 | . . . 1 . . . . 5 . 30 1 Allies Corrupted . | . . . . . . . . . . . . Allies Melted . | . . . . . . . . . . . . Turrets Deployed 1 | . . . . . . . . . . . 1 Intel | -11 -10 -10 -9 -9 -9 -8 -8 -8 -8 -8 -6 ------- Run | Yrd Mat Min Mat Min Exi Min Mat Sto Rec Scr Fac Robot Analysis Total 10 | . 2 . . . . . . 1 1 6 . Derelict Logs Recovered 1 | . . 1 . . . . . . . . . Drone Launches . | . . . . . . . . . . . . Drone Recoveries . | . . . . . . . . . . . . Exploration | -11 -10 -10 -9 -9 -9 -8 -8 -8 -8 -8 -6 ------------- Run | Yrd Mat Min Mat Min Exi Min Mat Sto Rec Scr Fac Turns Passed 42283 | 96 1272 489 1365 547 1207 99 1546 1637 3020 30026 979 Spaces Moved 9637 | 48 505 134 371 191 497 40 496 436 1171 5041 707 Core 99 | 2 . . . . . . . . . 93 4 Treads 8832 | 43 505 134 371 191 497 40 496 436 1171 4948 . Legs . | . . . . . . . . . . . . Wheels 663 | 3 . . . . . . . . . . 660 Hover 37 | . . . . . . . . . . . 37 Flight 6 | . . . . . . . . . . . 6 Fastest Speed 30 | 50 160 320 240 240 240 240 240 225 225 230 30 Average Speed 329 | 151 220 320 264 240 240 240 240 225 228 434 85 Slowest Speed 3550 | 160 320 320 320 240 240 240 320 240 233 3550 1070 Overloaded Moves . | . . . . . . . . . . . . Propulsion Burnouts . | . . . . . . . . . . . . Robots Hopped . | . . . . . . . . . . . . Cave-ins Triggered . | . . . . . . . . . . . . Exploration Rate (%) 48 | 5 85 35 23 36 70 26 48 47 95 95 20 Regions Visited 11 Branch Regions 7 Pre-discovered Areas 13 | . . 1 . . 1 . . 3 8 . . Known Exits Taken 3 | . . . . . . . 1 . 1 1 . Unknown Exits Taken 8 | 1 1 1 1 1 1 1 . 1 . . . Scrap Searched 4 | . . . . . . . . . . 4 . Spaces Dug 47 | . . . . . . . 10 20 . 7 10 Terrain Destroyed 145 | . . . . . . . 15 20 . 67 43 Melee 34 | . . . . . . . 10 9 . 7 8 Projectile 80 | . . . . . . . 2 . . 60 18 AOE 31 | . . . . . . . 3 11 . . 17 Terrain Rammed . | . . . . . . . . . . . . Walls Destroyed . | . . . . . . . . . . . . Machines Disabled . | . . . . . . . . . . . . Actions | -11 -10 -10 -9 -9 -9 -8 -8 -8 -8 -8 -6 --------- Run | Yrd Mat Min Mat Min Exi Min Mat Sto Rec Scr Fac Total 19066 | 63 615 155 600 231 516 41 711 935 1489 12750 960 Wait 7885 | . 42 . 75 8 . . 44 352 237 7045 82 Move 9626 | 47 504 133 370 190 496 39 495 435 1170 5040 707 Hop . | . . . . . . . . . . . . Pick Up 178 | 5 18 1 15 . 8 . 20 13 2 85 11 Fast Attach 83 | 7 5 . 9 1 . . 6 8 1 23 23 Attach 49 | . . . 5 3 2 . 3 5 1 16 14 Detach 45 | 1 . . 9 3 . . 4 2 1 15 10 Swap 128 | . 2 1 12 . 1 . 30 22 3 47 10 Drop 233 | . 13 . 21 . 9 . 36 23 4 111 16 Fire 587 | 3 29 19 75 24 . . 55 62 9 267 44 Melee 82 | . . . . . . . 11 11 . 37 23 Ram 3 | . . . . . . . . . . . 3 Kick . | . . . . . . . . . . . . Crush 32 | . 2 1 9 2 . 2 7 2 7 . . Escape Stasis 16 | . . . . . . . . . . . 16 Rewire 55 | . . . . . . . . . 54 . 1 Trap 1 | . . . . . . . . . . 1 . Miscellaneous 63 | . . . . . . . . . . 63 . Route ------- -11/Scrapyard -10/Materials (discovered 4 exits: *Mat x3 / [*Min]) -10/Mines -9/Materials -9/Mines -9/Exiles -8/Mines -8/Materials (discovered 2 exits: [*Fac] / *Sto) -8/Storage (discovered 2 exits: [*Fac] / *Rec) -8/Recycling (discovered 2 exits: Fac / *Scr) -8/Scraptown (discovered 2 exits: *Fac x2) -6/Factory (discovered 8 exits: Fac x4 / Low x2 / Ext x2) History --------- Turn | Location | Event 32 | -11/Scrapyard | Discovered new exit (range 16) 97 | -11/Scrapyard | Entered Materials 314 | -10/Materials | Build established: Mutant 322 | -10/Materials | Discovered new exit (range 10) 563 | -10/Materials | Discovered new exit (range 8) 780 | -10/Materials | Discovered new exit (range 12) 917 | -10/Materials | Discovered new exit (range 13) 1369 | -10/Materials | Entered Mines 1410 | -10/Mines | Learned location of Storage (-8) 1835 | -10/Mines | Discovered new exit (range 8) 1838 | -10/Mines | Received a Mining Laser from a helpful Derelict 1858 | -10/Mines | Entered Materials 1858 | -9/Materials | Accompanied by 1 ally 1858 | -9/Materials | Evolved 2 slots: Propulsion x1, Utility x1 2519 | -9/Materials | Discovered new exit (range 11) 2652 | -9/Materials | Build established: Scavenger-Mutant 3223 | -9/Materials | Entered Mines 3413 | -9/Mines | Core integrity fell below 50% 3661 | -9/Mines | Deemed a non-threat by the Exiles lab entrance 3664 | -9/Mines | Discovered new exit (range 5) 3770 | -9/Mines | Entered Exiles 3828 | -9/Exiles | Met 8R-AWN 3869 | -9/Exiles | Met EX-HEX 4060 | -9/Exiles | Met EX-DEC 4106 | -9/Exiles | Learned location of Zion (-6) 4266 | -9/Exiles | Met EX-BIN 4446 | -9/Exiles | Discovered new exit (range 14) 4642 | -9/Exiles | Aligned with FarCom system 4645 | -9/Exiles | Given EX-Vault access code 4702 | -9/Exiles | Opened EX-Vault 4714 | -9/Exiles | Found AWS/Autocannon 4766 | -9/Exiles | Warned to stay clear of 0b10 Research branches 4977 | -9/Exiles | Left Exiles lab with AWS/Autocannon 4977 | -9/Exiles | Entered Mines 5047 | -8/Mines | Discovered new exit (range 2) 5076 | -8/Mines | Entered Materials 5076 | -8/Materials | Evolved 2 slots: Utility x1, Weapon x1 5086 | -8/Materials | Identified exit to Storage 5523 | -8/Materials | Build established: Scavenger-Skirmisher 6267 | -8/Materials | Discovered new exit (range 13) 6594 | -8/Materials | Learned Factory fabricator intel 6622 | -8/Materials | Entered Storage 6677 | -8/Storage | Met a pair of Derelict thieves 6857 | -8/Storage | Destroyed 8 combat bots 7140 | -8/Storage | Discovered new exit (range 13) 7539 | -8/Storage | Discovered new exit (range 16) 7584 | -8/Storage | Assisted by bots powering up and referring to "LRC-V3" 7671 | -8/Storage | Learned location of Recycling (-8) 7817 | -8/Storage | Learned 4 Lower Caves zone layouts 7853 | -8/Storage | Used back door to open Recycling access 7877 | -8/Storage | Learned location of Extension (-6) 8117 | -8/Storage | Build established: Commander-Mutant 8144 | -8/Storage | Loaded intel: 4 trap records 8259 | -8/Storage | Entered Recycling 8259 | -8/Recycling | Accompanied by 10 allies 8260 | -8/Recycling | Joined Warlord attack on 0b10 via Recycling 8260 | -8/Recycling | Identified exit to Factory 8803 | -8/Recycling | Identified exit to Scraptown 8871 | -8/Recycling | Learned Factory security intel 8892 | -8/Recycling | Learned 12 Factory zone layouts 8902 | -8/Recycling | Learned location of 2 exits from Lower Caves 8903 | -8/Recycling | Learned Factory terminal intel 8905 | -8/Recycling | Learned location of Lower Caves (-7) 8952 | -8/Recycling | Scanned before Scraplab entrance 9079 | -8/Recycling | Build established: Commander-Tank 11099 | -8/Recycling | Entered Scraplab 11279 | -8/Recycling | Entered Scraptown 11279 | -8/Scraptown | Accompanied by 17 allies 11469 | -8/Scraptown | Heard Great Nut preacher, LISTEN AND RECITE! 11973 | -8/Scraptown | Visited Symbiants 12007 | -8/Scraptown | Visited Spacefarers 12136 | -8/Scraptown | Visited Cyclists 12951 | -8/Scraptown | Visited Assassins FH 12996 | -8/Scraptown | Visited Science Testing Area 13051 | -8/Scraptown | Visited Cave Peace 13791 | -8/Scraptown | Turned away by UFD registrar 14393 | -8/Scraptown | Attacked by Scraptown defenders 14393 | -8/Scraptown | Allies destroyed Triborg 14398 | -8/Scraptown | Found Prototype Ballistic Cannon 14398 | -8/Scraptown | Identified Siege Cannon 14405 | -8/Scraptown | Found Tri-treads 14434 | -8/Scraptown | Found Tri-treads 14588 | -8/Scraptown | Lost 3 allies 14819 | -8/Scraptown | Lost 4 allies 15258 | -8/Scraptown | Lost 3 allies 15523 | -8/Scraptown | Build established: Tank 16227 | -8/Scraptown | System corruption cleaned by C-Scrubber 21478 | -8/Scraptown | Build established: Scavenger-Tank 21553 | -8/Scraptown | Destroyed 15 combat bots 21622 | -8/Scraptown | Destroyed 8 combat bots 21687 | -8/Scraptown | Destroyed 8 combat bots 21748 | -8/Scraptown | Destroyed 7 combat bots 23251 | -8/Scraptown | System corruption cleaned by C-Scrubber 23579 | -8/Scraptown | Visited Science Guys 23723 | -8/Scraptown | Visited Abandonware Association 23776 | -8/Scraptown | Core integrity fell below 50% 23777 | -8/Scraptown | Learned abandonware demo "HACKBUD.EXE" 23915 | -8/Scraptown | Visited Junk Repository 24032 | -8/Scraptown | Visited Analyses Database 24144 | -8/Scraptown | Visited Scrap Suit Storage 24360 | -8/Scraptown | Visited Observation Area 24522 | -8/Scraptown | Visited Curators Association 24662 | -8/Scraptown | Visited Supply Room 24752 | -8/Scraptown | Visited Scrapoid Pod Storage 26262 | -8/Scraptown | Visited Junk Repository 26561 | -8/Scraptown | Found Prototype Wheel 26824 | -8/Scraptown | Build established: Scavenger-Mutant 26837 | -8/Scraptown | Found Voltaic Drivehammer 27150 | -8/Scraptown | Entered Cyclist Reading Room 28347 | -8/Scraptown | Build established: Hauler-Mutant 28985 | -8/Scraptown | Found Scrap Suit 28997 | -8/Scraptown | Found Scrap Suit 29263 | -8/Scraptown | Found Deploy-a-Sentry 30273 | -8/Scraptown | Found Scrapoid Pod 36236 | -8/Scraptown | Found Scrapoid Pod 36339 | -8/Scraptown | Found Scrapoid Pod 38376 | -8/Scraptown | Scrapoid Pod released 08S05-D (x5) 38438 | -8/Scraptown | Build established: Mutant 38852 | -8/Scraptown | Found Scrap Suit 38857 | -8/Scraptown | Found Scrap Suit 38875 | -8/Scraptown | Build established: Scavenger-Mutant 40182 | -8/Scraptown | Murdered 3 allies 40427 | -8/Scraptown | Found Scrap Suit 41305 | -8/Scraptown | Entered Factory 41305 | -6/Factory | Evolved 4 slots: Power x1, Propulsion x1, Utility x2 41306 | -6/Factory | Identified exit to Factory 41306 | -6/Factory | Identified exit to Lower Caves 41306 | -6/Factory | Identified Ballwheel 41309 | -6/Factory | Loaded intel: 27 terminal locations 41310 | -6/Factory | Loaded intel: 6 fabricator locations 41930 | -6/Factory | System corruption reached 10% 42021 | -6/Factory | Identified exit to Extension 42042 | -6/Factory | Garrison activated, responded to threat 42104 | -6/Factory | Lost 4 parts (1p1n1u1w) 42216 | -6/Factory | Cargo convoy interrupted 42228 | -6/Factory | DAS Turret deployed 42265 | -6/Factory | Released all parts (8) 42275 | -6/Factory | Core integrity fell below 50% 42281 | -6/Factory | Core integrity fell below 20% 42284 | -6/Factory | Destroyed by H-66 Slayer with Gauss Rifle Last Messages --------------- 42274_ U-05 Engineer lays Concrete. 42275_ P-60 Hacker resets G-50 Soldier, system corruption cleaned. 42275_ Penetrated by Slug. 42276_ U-05 Engineer lays Concrete. 42277_ System corrupted: Diametric Drive rejected. 42277_ Penetrated by Slug. 42277_ U-05 Engineer lays Concrete. 42278_ Diametric Drive destroyed. 42278_ U-05 Engineer lays Concrete. 42280_ K-01 Serf collects debris. 42280_ U-05 Engineer lays Concrete. 42280_ Penetrated by Slug. 42280_ U-05 Engineer destroyed. 42280_ Slug penetrates Wall. 42281_ U-05 Engineer builds a Wall. 42281_ Acquired Diametric Drive. 42282_ Penetrated by Slug. 42283_ K-01 Serf collects debris. 42283_ Acquired 5 matter. 42284_ Penetrated by Slug. Map ----- +----------------------------------------------------+ | # ??????????????????????????#######??????# | | # ?????????????????????????# ! ??????# | | # ?????????????????????????# ??????# | | # ????????????????????###### ???????# | | ###?????????#??????????# ]!!#? % ????????# | | ??#?????????# ?????????# ]!!###/###########^ ^ ^ | | ??#?????????# ?????????# !!!# % | | ??#?????????# ########+# # | | ?##?????????# ^ "% """ /! | | ????????????# !=! """ ! | | ??????????### ^ !%" """% | | ???????? != ! T" | | ???????????????# = i =!!!""" % % | | ???????????????# == ## !% |! % % | | ???????????? ! + !=% = *%=[[ ! % %%% | | ??????????? # =###########################+### | | ???????????????## ##??????????###?????????? ? | | ?????????????x??# #?????????????????????????! | | ????????????????# #?????????????????????????? [ | | ???????????x????# #??????????????????????????? | | ????????????????#/########????????????????????? "" | | ???????????????##u]%!![%!#?##########???????????"? | | ???"T"?????????##[k!x=]= #? ?????????????? | | ???????????????##[=*xh=!=# ???????????????? | | ????????????????#]]go= %=# """ """"?????????????? | | ???????????????## =]=* @ """ ""F"?????????????? | | ???????????????#; =%| # """ ??????????????? | | ???????????# h p # !???????????????? | | ???????????###### #? """ !!!?????????????? | | ????????????????# #? """ !!! ????????????? | | ????????????????##########??""" ???????????? | | ???????????????????????????? ????????????? | | ????????????????????????????? !=?????????????????? | | ????????????????????????????? ==?????????????????? | | ?????????????????????????????? ?????????????????? | | ?????????????????????????????? ?????????????????? | | ??????????????????????????????? ?????????????????? | | ?????????????????????????????????????????????????? | | ?????????????????????????????????????????????????? | | ?????????????????????????????????????????????????? | | ?????????????????????????????????????????????????? | | ?????????????????????????????????????????????????? | | ?????????????????????????????????????????????????? | | ?????????????????????????????????????????????????? | | ?????????????????????????????????????????????????? | | ?????????????????????????????????????????????????? | | ?????????????????????????????????????????????????? | | ?????????????????????????????????????????????????? | | ?????????????????????????????????????????????????? | | ?????????????????????????????????????????????????? | +----------------------------------------------------+ Best States ------------- Heat Dissipation 59 Coolant Potential 50 Energy Generation 30 Energy Capacity 900 Matter Stores 300 Matter Capacity 300 Sight Range 20 Robot Scan Range 15 Terrain Scan Density 10 Armor Coverage 450 Resistance: KI 30 Core Shielding 20 Evasion (%) 50 Recoil Reduction 3 Offensive Hacking 10 Authchip Count 1 Item Schematics ----------------- Cargo Storage Unit | -10/Materials | Hacked Mak. Leg | -8/Scraptown | Extrapolated Mak. Coolant Network | -8/Scraptown | Extrapolated Mak. Light Armor Plating | -8/Scraptown | Extrapolated Spk. Treads | -8/Scraptown | Extrapolated 0b10 Decoder Chip [Skirmisher] | -6/Factory | Extrapolated Mak. ECM Suite | -6/Factory | Extrapolated Mak. Power Source | -6/Factory | Extrapolated Hvy. Siege Treads | -6/Factory | Hacked Beamcaster | -6/Factory | Extrapolated Spk. Medium Treads | -6/Factory | Extrapolated Robot Schematics ------------------ M-28 Smith | -8/Storage | Hacked Fabricated ------------ Nothing Alien Tech Used ----------------- None Achievements -------------- None Challenges ------------ None Game ------ Seed AluminumPropulsionDissipator Manual? 0 Play Time 03:56:05 Cumulative 675.0 hours Start 2024.08.11 @ 13:04:33 End 2024.10.06 @ 10:44:35 Sessions 13 Manual Loads 0 Difficulty Rogue Special Mode None Game No. 598 Rogue 383 Adventurer 112 Explorer 103 Win Type - Total 43 Types 27/0/8/3/0/0/4/1/0 Lore% 71 Gallery% 88 Achievement% 82 Wizard Run 0 Options --------- Layout 0 ASCII 0 Keyboard 1 Movement Vi Keybinds 1 Fullscreen 2 Font 20/Terminus Map View 72x56 Zoom Use 0% Tactical HUD 1 Map Filters NONE Filters NONE Steam 0 RUN: ed9aad51-929f-4b61-8508-360845fa1048